{"text_format":"1","workbook":"xlsx","n_sheets":4,"sheets":["Pg 1","Pg 2","Pg 3","Pg 4"],"not_rendered":{"charts":0,"images":1,"macros":1,"external_links":0,"defined_names":26,"comments":0,"pivot_tables":0},"unopened":[],"bounds":{"document_bytes":16777216,"sheet_cells":100000,"rows_first":2000,"rows_last":500,"rows_between":2000,"halvings":0,"cell_chars":16384,"cell_head_chars":4096},"cells_cut":0,"cells_raw":0,"read":"whole","date_system":"1900"}

{"sheet":"Pg 1","index":0,"n_rows":44,"n_cols":17,"rows_kept":44,"cut":false,"hidden":false,"merged":[[0,0,0,30],[6,0,6,30],[8,0,8,30],[9,0,9,30],[13,0,13,30],[7,0,7,30],[1,0,4,30],[17,0,17,7],[17,8,17,30],[15,22,15,30],[15,0,15,2],[15,16,15,21],[15,3,15,14],[16,0,16,5],[16,6,16,14],[16,16,16,21],[16,22,16,30],[18,0,18,4],[18,5,18,14],[18,21,18,30],[18,16,18,20],[19,0,19,3],[19,4,19,14],[19,16,19,18],[19,20,19,30],[20,8,20,30],[20,0,20,6],[21,0,21,6],[21,7,21,14],[21,16,21,23],[21,24,21,30],[35,0,35,6],[35,8,35,30],[32,0,32,7],[32,8,32,30],[33,0,33,4],[33,5,33,14],[33,16,33,20],[33,21,33,30],[27,0,27,30],[28,0,28,30],[34,0,34,3],[34,4,34,14],[34,16,34,18],[34,20,34,30],[30,0,30,2],[30,3,30,14],[30,16,30,21],[30,22,30,30],[31,0,31,5],[31,6,31,14],[31,16,31,21],[31,22,31,30],[36,0,36,6],[36,7,36,14],[36,16,36,23],[36,24,36,30],[43,0,43,30]]}
["Exhibit 5"]
[]
[]
[]
[]
[]
["PERSONAL FINANCIAL STATEMENT"]
[]
["Contact your representative at the bank if you have any"]
["questions regarding the completion of this form"]
[]
[]
[]
["Applicant"]
[]
["Name:",null,null,null,null,null,null,null,null,null,null,null,null,null,null,null,"Driver's License #:"]
["Social Security #:",null,null,null,null,null,null,null,null,null,null,null,null,null,null,null,"Date of Birth:"]
["Address/City/State/ZIP:"]
["Home Phone:",null,null,null,null,null,null,null,null,null,null,null,null,null,null,null,"Cell Phone:"]
["Employer:",null,null,null,null,null,null,null,null,null,null,null,null,null,null,null,"Position:"]
["Employer's Address:"]
["Employer's Phone:",null,null,null,null,null,null,null,null,null,null,null,null,null,null,null,"Length of Employment:"]
[]
[]
[]
[]
["Co-Applicant  "]
["(Complete this section only if you are applying for joint credit or relying on the income from alimony, child"]
["support, or separate maintenance of another person as the basis for repayment of the credit)"]
[]
["Name:",null,null,null,null,null,null,null,null,null,null,null,null,null,null,null,"Driver's License #:"]
["Social Security #:",null,null,null,null,null,null,null,null,null,null,null,null,null,null,null,"Date of Birth:"]
["Address/City/State/ZIP:"]
["Home Phone:",null,null,null,null,null,null,null,null,null,null,null,null,null,null,null,"Cell Phone:"]
["Employer:",null,null,null,null,null,null,null,null,null,null,null,null,null,null,null,"Position:"]
["Employer's Address:"]
["Employer's Phone:",null,null,null,null,null,null,null,null,null,null,null,null,null,null,null,"Length of Employment:"]
[]
[]
[]
[]
[]
[]
["Equal Opportunity Lender / Member FDIC"]

{"sheet":"Pg 2","index":1,"n_rows":48,"n_cols":27,"rows_kept":48,"cut":false,"hidden":false,"merged":[[18,16,18,25],[18,26,18,30],[6,0,6,9],[6,10,6,14],[7,0,7,9],[7,10,7,14],[4,10,4,14],[4,0,4,9],[5,0,5,9],[5,10,5,14],[4,26,4,30],[5,16,5,25],[5,26,5,30],[6,16,6,25],[6,26,6,30],[0,19,0,30],[1,19,1,30],[3,0,3,14],[3,16,3,30],[11,0,11,9],[11,10,11,14],[12,0,12,9],[12,10,12,14],[13,0,13,9],[13,10,13,14],[8,0,8,9],[8,10,8,14],[9,0,9,9],[9,10,9,14],[10,0,10,9],[10,10,10,14],[10,26,10,30],[11,16,11,25],[11,26,11,30],[7,16,7,25],[7,26,7,30],[8,16,8,25],[8,26,8,30],[4,16,4,25],[19,0,19,9],[19,10,19,14],[20,0,20,9],[20,10,20,14],[21,0,21,9],[21,10,21,14],[17,0,17,9],[17,10,17,14],[14,0,14,9],[14,10,14,14],[15,0,15,9],[15,10,15,14],[16,0,16,9],[16,10,16,14],[18,0,18,9],[18,10,18,14],[20,16,20,25],[20,26,20,30],[21,16,21,25],[21,26,21,30],[0,6,0,14],[23,16,23,25],[23,26,23,30],[19,16,19,25],[19,26,19,30],[15,16,15,25],[15,26,15,30],[16,16,16,25],[16,26,16,30],[17,16,17,25],[17,26,17,30],[12,16,12,25],[12,26,12,30],[13,16,13,25],[13,26,13,30],[14,16,14,25],[14,26,14,30],[9,16,9,25],[9,26,9,30],[10,16,10,25],[31,0,31,9],[31,10,31,14],[31,16,31,25],[31,26,31,30],[32,0,32,9],[32,10,32,14],[25,16,25,25],[26,16,26,25],[25,26,25,30],[26,26,26,30],[29,0,29,30],[30,0,30,14],[30,16,30,30],[32,16,32,25],[32,26,32,30],[40,0,40,9],[40,10,40,14],[41,0,41,9],[41,10,41,14],[36,0,36,9],[36,10,36,14],[37,0,37,9],[37,10,37,14],[38,0,38,9],[38,10,38,14],[33,16,33,25],[33,26,33,30],[34,16,34,25],[34,26,34,30],[35,16,35,25],[35,26,35,30],[39,0,39,9],[39,10,39,14],[33,0,33,9],[33,10,33,14],[34,0,34,9],[34,10,34,14],[35,0,35,9],[35,10,35,14],[39,16,39,25],[39,26,39,30],[40,16,40,25],[40,26,40,30],[41,16,41,25],[41,26,41,30],[36,16,36,25],[36,26,36,30],[37,16,37,25],[37,26,37,30],[38,16,38,25],[38,26,38,30],[47,0,47,9],[47,10,47,14],[45,16,45,25],[45,26,45,30],[46,16,46,25],[46,26,46,30],[47,16,47,25],[47,26,47,30],[42,16,42,25],[42,26,42,30],[43,16,43,25],[43,26,43,30],[44,16,44,25],[44,26,44,30],[42,0,42,9],[42,10,42,14]]}
["Date of Valuation:",null,null,null,null,null,null,null,null,null,null,null,null,null,null,null,null,null,null,"Round all amounts to nearest $100"]
[null,null,null,null,null,null,null,null,null,null,null,null,null,null,null,null,null,null,null,"Attach separate sheet if needed"]
[]
["Assets",null,null,null,null,null,null,null,null,null,null,null,null,null,null,null,"Liabilities"]
["Cash In This Bank",null,null,null,null,null,null,null,null,null,0,null,null,null,null,null,"Notes Payable (Sch 6)",null,null,null,null,null,null,null,null,null,{"$f":"'Pg 3'!AA45","v":0}]
["Cash In Other Banks (detail)",null,null,null,null,null,null,null,null,null,0,null,null,null,null,null,null,null,null,null,null,null,null,null,null,null,0]
[null,null,null,null,null,null,null,null,null,null,0,null,null,null,null,null,"Income Taxes Payable",null,null,null,null,null,null,null,null,null,0]
[null,null,null,null,null,null,null,null,null,null,0,null,null,null,null,null,null,null,null,null,null,null,null,null,null,null,0]
[null,null,null,null,null,null,null,null,null,null,0,null,null,null,null,null,null,null,null,null,null,null,null,null,null,null,0]
["Mortgages & Contracts for Deed Owned (Sch 1)",null,null,null,null,null,null,null,null,null,{"$f":"'Pg 3'!Y7","v":0},null,null,null,null,null,"Credit Cards/Other Credit Line Balance (Sch 8)",null,null,null,null,null,null,null,null,null,{"$f":"'Pg 4'!P10","v":0}]
["Securities Owned (Sch 2)",null,null,null,null,null,null,null,null,null,{"$f":"'Pg 3'!Y15","v":0},null,null,null,null,null,null,null,null,null,null,null,null,null,null,null,0]
["Cash Surrender Value of Life Insurance (Sch 3)",null,null,null,null,null,null,null,null,null,{"$f":"'Pg 3'!X23","v":0},null,null,null,null,null,"Loans on Life Insurance (Sch 3)",null,null,null,null,null,null,null,null,null,{"$f":"'Pg 3'!AB23","v":0}]
["Homestead (Sch 4)",null,null,null,null,null,null,null,null,null,{"$f":"'Pg 3'!K27","v":0},null,null,null,null,null,"Home Mortgage (Sch 4)",null,null,null,null,null,null,null,null,null,{"$f":"'Pg 3'!O27","v":0}]
["Other Real Estate Owned (Sch 5)",null,null,null,null,null,null,null,null,null,{"$f":"'Pg 3'!K36","v":0},null,null,null,null,null,"Loans on Other RE (Sch 5)",null,null,null,null,null,null,null,null,null,{"$f":"'Pg 3'!O36","v":0}]
["Vehicles, Boats, Collectables (Sch 7)",null,null,null,null,null,null,null,null,null,{"$f":"'Pg 3'!Z55","v":0},null,null,null,null,null,null,null,null,null,null,null,null,null,null,null,0]
["Retirement Accounts",null,null,null,null,null,null,null,null,null,0,null,null,null,null,null,null,null,null,null,null,null,null,null,null,null,0]
["Other Personal Property",null,null,null,null,null,null,null,null,null,0,null,null,null,null,null,"Other Liabilities (detail)",null,null,null,null,null,null,null,null,null,0]
[null,null,null,null,null,null,null,null,null,null,0,null,null,null,null,null,null,null,null,null,null,null,null,null,null,null,0]
[null,null,null,null,null,null,null,null,null,null,0,null,null,null,null,null,null,null,null,null,null,null,null,null,null,null,0]
[null,null,null,null,null,null,null,null,null,null,0,null,null,null,null,null,null,null,null,null,null,null,null,null,null,null,0]
[null,null,null,null,null,null,null,null,null,null,0,null,null,null,null,null,null,null,null,null,null,null,null,null,null,null,0]
["Total Assets",null,null,null,null,null,null,null,null,null,{"$f":"SUM(K5:O21)","v":0},null,null,null,null,null,"Total Liabilities",null,null,null,null,null,null,null,null,null,{"$f":"SUM(AA5:AE21)","v":0}]
[]
[null,null,null,null,null,null,null,null,null,null,null,null,null,null,null,null,"Net Worth",null,null,null,null,null,null,null,null,null,{"$f":"K22-AA22","v":0}]
[]
[null,null,null,null,null,null,null,null,null,null,null,null,null,null,null,null,"Contingent Liabilities (Sch 9)",null,null,null,null,null,null,null,null,null,{"$f":"'Pg 4'!X20","v":0}]
[null,null,null,null,null,null,null,null,null,null,null,null,null,null,null,null,"Available Credit Lines (Sch 8)",null,null,null,null,null,null,null,null,null,{"$f":"'Pg 4'!X10","v":0}]
[]
[]
["Annual Cash Flow Statement"]
["Income",null,null,null,null,null,null,null,null,null,null,null,null,null,null,null,"Expenses/Cash Outlays"]
["Gross W-2 Income",null,null,null,null,null,null,null,null,null,0,null,null,null,null,null,"Income Taxes",null,null,null,null,null,null,null,null,null,0]
["Commissions",null,null,null,null,null,null,null,null,null,0,null,null,null,null,null,"Home Mortgage (PIT)",null,null,null,null,null,null,null,null,null,0]
["Dividends",null,null,null,null,null,null,null,null,null,0,null,null,null,null,null,"Auto Payments",null,null,null,null,null,null,null,null,null,0]
["Interest",null,null,null,null,null,null,null,null,null,0,null,null,null,null,null,"Other Bank Debt",null,null,null,null,null,null,null,null,null,0]
["Rentals",null,null,null,null,null,null,null,null,null,0,null,null,null,null,null,"Credit Cards",null,null,null,null,null,null,null,null,null,0]
["Alimony/Child Support",null,null,null,null,null,null,null,null,null,0,null,null,null,null,null,"Education",null,null,null,null,null,null,null,null,null,0]
["Other Income",null,null,null,null,null,null,null,null,null,0,null,null,null,null,null,"Other Real Estate",null,null,null,null,null,null,null,null,null,0]
[null,null,null,null,null,null,null,null,null,null,0,null,null,null,null,null,"Partnership/Other Investments",null,null,null,null,null,null,null,null,null,0]
[null,null,null,null,null,null,null,null,null,null,0,null,null,null,null,null,"Loans on Life Insurance",null,null,null,null,null,null,null,null,null,0]
[null,null,null,null,null,null,null,null,null,null,0,null,null,null,null,null,"Household/Family Expenses",null,null,null,null,null,null,null,null,null,0]
[null,null,null,null,null,null,null,null,null,null,0,null,null,null,null,null,"Alimony/Child Support",null,null,null,null,null,null,null,null,null,0]
["Total Income",null,null,null,null,null,null,null,null,null,{"$f":"SUM(K32:O42)","v":0},null,null,null,null,null,"Dependent Care",null,null,null,null,null,null,null,null,null,0]
[null,null,null,null,null,null,null,null,null,null,null,null,null,null,null,null,"Insurance",null,null,null,null,null,null,null,null,null,0]
[null,null,null,null,null,null,null,null,null,null,null,null,null,null,null,null,"Other",null,null,null,null,null,null,null,null,null,0]
[null,null,null,null,null,null,null,null,null,null,null,null,null,null,null,null,null,null,null,null,null,null,null,null,null,null,0]
[null,null,null,null,null,null,null,null,null,null,null,null,null,null,null,null,null,null,null,null,null,null,null,null,null,null,0]
["Net Discretionary Income",null,null,null,null,null,null,null,null,null,{"$f":"K43-AA48","v":0},null,null,null,null,null,"Total Expenses",null,null,null,null,null,null,null,null,null,{"$f":"SUM(AA32:AE47)","v":0}]

{"sheet":"Pg 3","index":2,"n_rows":55,"n_cols":28,"rows_kept":55,"cut":false,"hidden":false,"merged":[[1,24,1,30],[8,0,8,30],[0,0,0,30],[1,8,1,12],[1,0,1,3],[1,4,1,7],[1,13,1,16],[1,17,1,23],[2,0,2,3],[2,4,2,7],[2,8,2,12],[2,13,2,16],[2,17,2,23],[4,0,4,3],[4,4,4,7],[4,8,4,12],[4,13,4,16],[4,17,4,23],[4,24,4,30],[2,24,2,30],[3,0,3,3],[3,4,3,7],[3,8,3,12],[3,13,3,16],[3,17,3,23],[3,24,3,30],[6,17,6,23],[6,24,6,30],[9,0,9,7],[9,8,9,23],[9,24,9,30],[10,0,10,7],[10,8,10,23],[10,24,10,30],[5,0,5,3],[5,4,5,7],[5,8,5,12],[5,13,5,16],[5,17,5,23],[5,24,5,30],[13,0,13,7],[13,8,13,23],[13,24,13,30],[14,17,14,23],[14,24,14,30],[16,0,16,30],[11,0,11,7],[11,8,11,23],[11,24,11,30],[12,0,12,7],[12,8,12,23],[12,24,12,30],[17,23,17,26],[17,27,17,30],[18,0,18,4],[18,5,18,11],[18,12,18,16],[18,17,18,22],[18,23,18,26],[18,27,18,30],[17,0,17,4],[17,5,17,11],[17,12,17,16],[17,17,17,22],[20,0,20,4],[20,5,20,11],[20,12,20,16],[20,17,20,22],[20,23,20,26],[20,27,20,30],[19,0,19,4],[19,5,19,11],[19,12,19,16],[19,17,19,22],[19,23,19,26],[19,27,19,30],[22,0,22,4],[22,5,22,11],[22,12,22,16],[22,17,22,22],[22,23,22,26],[22,27,22,30],[21,0,21,4],[21,5,21,11],[21,12,21,16],[21,17,21,22],[21,23,21,26],[21,27,21,30],[28,0,28,30],[26,27,26,30],[26,0,26,5],[26,6,26,9],[26,10,26,13],[26,14,26,17],[26,18,26,21],[26,22,26,26],[24,0,24,30],[25,6,25,9],[25,10,25,13],[25,14,25,17],[25,18,25,21],[25,22,25,26],[25,0,25,5],[25,27,25,30],[30,27,30,30],[30,0,30,5],[30,6,30,9],[30,10,30,13],[30,14,30,17],[30,18,30,21],[30,22,30,26],[29,0,29,5],[29,6,29,9],[29,10,29,13],[29,14,29,17],[29,18,29,21],[29,22,29,26],[29,27,29,30],[34,18,34,21],[34,22,34,26],[32,27,32,30],[31,0,31,5],[31,6,31,9],[31,10,31,13],[31,14,31,17],[31,18,31,21],[31,22,31,26],[31,27,31,30],[33,0,33,5],[33,6,33,9],[32,0,32,5],[32,6,32,9],[32,10,32,13],[32,14,32,17],[32,18,32,21],[32,22,32,26],[38,0,38,5],[38,6,38,10],[38,11,38,16],[38,17,38,22],[38,23,38,25],[38,26,38,30],[33,10,33,13],[33,14,33,17],[33,18,33,21],[33,22,33,26],[33,27,33,30],[37,0,37,30],[34,27,34,30],[35,0,35,5],[35,6,35,9],[35,10,35,13],[35,14,35,17],[35,18,35,21],[35,22,35,26],[35,27,35,30],[34,0,34,5],[34,6,34,9],[34,10,34,13],[34,14,34,17],[40,0,40,5],[40,6,40,10],[40,11,40,16],[40,17,40,22],[40,23,40,25],[40,26,40,30],[39,0,39,5],[39,6,39,10],[39,11,39,16],[39,17,39,22],[39,23,39,25],[39,26,39,30],[42,0,42,5],[42,6,42,10],[42,11,42,16],[42,17,42,22],[42,23,42,25],[42,26,42,30],[41,0,41,5],[41,6,41,10],[41,11,41,16],[41,17,41,22],[41,23,41,25],[41,26,41,30],[44,0,44,5],[44,6,44,10],[44,11,44,16],[44,17,44,22],[44,23,44,25],[44,26,44,30],[43,0,43,5],[43,6,43,10],[43,11,43,16],[43,17,43,22],[43,23,43,25],[43,26,43,30],[46,0,46,30],[47,0,47,8],[47,9,47,14],[47,16,47,24],[47,25,47,30],[48,0,48,8],[48,9,48,14],[48,16,48,24],[48,25,48,30],[52,0,52,8],[52,9,52,14],[53,0,53,8],[53,9,53,14],[54,0,54,8],[54,9,54,14],[49,0,49,8],[49,9,49,14],[50,0,50,8],[50,9,50,14],[51,0,51,8],[51,9,51,14],[52,16,52,24],[52,25,52,30],[53,16,53,24],[53,25,53,30],[54,16,54,24],[54,25,54,30],[49,16,49,24],[49,25,49,30],[50,16,50,24],[50,25,50,30],[51,16,51,24],[51,25,51,30]]}
["Schedule 1 - Mortgages & Contracts for Deed Owned"]
["Name of Debtor",null,null,null,"Type of Property",null,null,null,"Payment Schedule",null,null,null,null,"Contract Maturity",null,null,null,"Existing Mortgage on Property",null,null,null,null,null,null,"Contract Balance"]
[null,null,null,null,null,null,null,null,null,null,null,null,null,null,null,null,null,null,null,null,null,null,null,null,0]
[null,null,null,null,null,null,null,null,null,null,null,null,null,null,null,null,null,null,null,null,null,null,null,null,0]
[null,null,null,null,null,null,null,null,null,null,null,null,null,null,null,null,null,null,null,null,null,null,null,null,0]
[null,null,null,null,null,null,null,null,null,null,null,null,null,null,null,null,null,null,null,null,null,null,null,null,0]
[null,null,null,null,null,null,null,null,null,null,null,null,null,null,null,null,null,"Total",null,null,null,null,null,null,{"$f":"SUM(Y3:AE6)","v":0}]
[]
["Schedule 2 - Securities Owned"]
["Description",null,null,null,null,null,null,null,"In Whose Name Registered",null,null,null,null,null,null,null,null,null,null,null,null,null,null,null,"Present Market Value"]
[null,null,null,null,null,null,null,null,null,null,null,null,null,null,null,null,null,null,null,null,null,null,null,null,0]
[null,null,null,null,null,null,null,null,null,null,null,null,null,null,null,null,null,null,null,null,null,null,null,null,0]
[null,null,null,null,null,null,null,null,null,null,null,null,null,null,null,null,null,null,null,null,null,null,null,null,0]
[null,null,null,null,null,null,null,null,null,null,null,null,null,null,null,null,null,null,null,null,null,null,null,null,0]
[null,null,null,null,null,null,null,null,null,null,null,null,null,null,null,null,null,"Total",null,null,null,null,null,null,{"$f":"SUM(Y11:AE14)","v":0}]
[]
["Schedule 3 - Life Insurance"]
["Insured",null,null,null,null,"Insurance Company",null,null,null,null,null,null,"Beneficiary",null,null,null,null,"Face Value",null,null,null,null,null,"Cash Value",null,null,null,"Loans"]
[]
[]
[]
[]
["Totals",null,null,null,null,null,null,null,null,null,null,null,null,null,null,null,null,{"$f":"SUM(R19:W22)","v":0},null,null,null,null,null,{"$f":"SUM(X19:AA22)","v":0},null,null,null,{"$f":"SUM(AB19:AE22)","v":0}]
[]
["Schedule 4 - Homestead"]
["Address",null,null,null,null,null,"Ind/Joint Owners",null,null,null,"Market Value",null,null,null,"Mortgage Balance",null,null,null,"Interest Rate",null,null,null,"Monthly Payment",null,null,null,null,"Monthly Income"]
[]
[]
["Schedule 5 - Other Real Estate"]
["Address",null,null,null,null,null,"Ind/Joint Owners",null,null,null,"Market Value",null,null,null,"Mortgage Balance",null,null,null,"Interest Rate",null,null,null,"Monthly Payment",null,null,null,null,"Monthly Income"]
[]
[]
[]
[]
[]
["Totals",null,null,null,null,null,null,null,null,null,{"$f":"SUM(K31:N35)","v":0},null,null,null,{"$f":"SUM(O31:R35)","v":0}]
[]
["Schedule 6 - Notes Payable to Banks/Installment Contracts Payable"]
["To Whom Payable",null,null,null,null,null,"Purpose of Loan",null,null,null,null,"Secured/Unsecured",null,null,null,null,null,"Monthly Payment",null,null,null,null,null,"Maturity",null,null,"Loan Balance"]
[]
[]
[]
[]
[]
["Totals",null,null,null,null,null,null,null,null,null,null,null,null,null,null,null,null,null,null,null,null,null,null,null,null,null,{"$f":"SUM(AA40:AE44)","v":0}]
[]
["Schedule 7 - Vehicles, Boats Collectibles"]
["Description",null,null,null,null,null,null,null,null,"Value",null,null,null,null,null,null,"Description",null,null,null,null,null,null,null,null,"Value"]
[]
[]
[]
[]
[]
[]
[null,null,null,null,null,null,null,null,null,null,null,null,null,null,null,null,"Totals",null,null,null,null,null,null,null,null,{"$f":"SUM(J49:O55,Z49:AE54)","v":0}]

{"sheet":"Pg 4","index":3,"n_rows":58,"n_cols":30,"rows_kept":58,"cut":false,"hidden":false,"merged":[[0,0,0,30],[1,0,1,4],[1,5,1,10],[1,11,1,14],[1,15,1,22],[1,23,1,30],[2,0,2,4],[2,5,2,10],[2,11,2,14],[2,15,2,22],[2,23,2,30],[4,0,4,4],[4,5,4,10],[4,11,4,14],[4,15,4,22],[4,23,4,30],[3,0,3,4],[3,5,3,10],[3,11,3,14],[3,15,3,22],[3,23,3,30],[6,0,6,4],[6,5,6,10],[6,11,6,14],[6,15,6,22],[6,23,6,30],[5,0,5,4],[5,5,5,10],[5,11,5,14],[5,15,5,22],[5,23,5,30],[8,0,8,4],[8,5,8,10],[8,11,8,14],[8,15,8,22],[8,23,8,30],[7,0,7,4],[7,5,7,10],[7,11,7,14],[7,15,7,22],[7,23,7,30],[9,0,9,4],[9,5,9,10],[9,11,9,14],[9,15,9,22],[9,23,9,30],[15,0,15,10],[15,23,15,30],[16,0,16,10],[16,11,16,22],[16,23,16,30],[22,2,22,9],[21,0,21,30],[17,0,17,10],[17,11,17,22],[17,23,17,30],[18,0,18,10],[18,11,18,22],[18,23,18,30],[11,18,11,19],[12,18,12,19],[25,19,26,20],[25,22,26,23],[25,26,26,27],[15,11,15,22],[14,0,14,30],[11,23,12,30],[19,0,19,10],[19,11,19,22],[19,23,19,30],[22,23,22,24],[22,25,22,30],[22,10,22,12],[22,13,22,22],[22,0,22,1],[25,0,26,17],[27,0,28,17],[29,0,30,17],[27,19,28,20],[27,22,28,23],[29,19,30,20],[24,18,24,23],[24,25,24,30],[25,29,26,30],[27,29,28,30],[29,26,30,27],[29,29,30,30],[57,17,57,30],[57,2,57,8],[53,2,53,8],[29,22,30,23],[27,26,28,27],[39,0,45,30],[47,0,48,30],[53,17,53,30],[31,0,32,17],[33,0,37,17],[31,18,32,23],[31,25,32,30]]}
["Schedule 8 - Credit Lines/Credit Cards"]
["Description",null,null,null,null,"Lender",null,null,null,null,null,"Credit Limit",null,null,null,"Balance Outstanding",null,null,null,null,null,null,null,"Balance Available"]
[null,null,null,null,null,null,null,null,null,null,null,null,null,null,null,null,null,null,null,null,null,null,null,{"$f":"L3-P3","v":0}]
[null,null,null,null,null,null,null,null,null,null,null,null,null,null,null,null,null,null,null,null,null,null,null,{"$f":"L4-P4","v":0}]
[null,null,null,null,null,null,null,null,null,null,null,null,null,null,null,null,null,null,null,null,null,null,null,0]
[null,null,null,null,null,null,null,null,null,null,null,null,null,null,null,null,null,null,null,null,null,null,null,0]
[null,null,null,null,null,null,null,null,null,null,null,null,null,null,null,null,null,null,null,null,null,null,null,0]
[null,null,null,null,null,null,null,null,null,null,null,null,null,null,null,null,null,null,null,null,null,null,null,0]
[null,null,null,null,null,null,null,null,null,null,null,null,null,null,null,null,null,null,null,null,null,null,null,0]
["Totals",null,null,null,null,null,null,null,null,null,null,{"$f":"SUM(L3:O9)","v":0},null,null,null,{"$f":"SUM(P3:W9)","v":0},null,null,null,null,null,null,null,{"$f":"SUM(X3:AE9)","v":0}]
[]
["Are you a Co-Maker, Endorser, or Guarantor on Any Debts?",null,null,null,null,null,null,null,null,null,null,null,null,null,null,null,null,null,"Yes",null,null,null,null,"If yes, please fill in schedule 9"]
[null,null,null,null,null,null,null,null,null,null,null,null,null,null,null,null,null,null,"No"]
[]
["Schedule 9 - Contingent Liabilities"]
["Lender",null,null,null,null,null,null,null,null,null,null,"Terms",null,null,null,null,null,null,null,null,null,null,null,"Balance"]
[null,null,null,null,null,null,null,null,null,null,null,null,null,null,null,null,null,null,null,null,null,null,null,0]
[null,null,null,null,null,null,null,null,null,null,null,null,null,null,null,null,null,null,null,null,null,null,null,0]
[null,null,null,null,null,null,null,null,null,null,null,null,null,null,null,null,null,null,null,null,null,null,null,0]
["Total",null,null,null,null,null,null,null,null,null,null,null,null,null,null,null,null,null,null,null,null,null,null,{"$f":"SUM(X17:AE19)","v":0}]
[]
["Name, Address & Phone Number of Nearest Relative Not Living With You:"]
["Name:",null,null,null,null,null,null,null,null,null,"Address:",null,null,null,null,null,null,null,null,null,null,null,null,"Phone:"]
[]
[null,null,null,null,null,null,null,null,null,null,null,null,null,null,null,null,null,null,"Applicant",null,null,null,null,null,null,"Co-Applicant"]
["Have you ever filed for bankruptcy or had a judgement against you?",null,null,null,null,null,null,null,null,null,null,null,null,null,null,null,null,null,null,"Yes",null,null,"No",null,null,null,"Yes",null,null,"No"]
[]
["Are any assets pledged or debts secured except as shown on this statement?",null,null,null,null,null,null,null,null,null,null,null,null,null,null,null,null,null,null,"Yes",null,null,"No",null,null,null,"Yes",null,null,"No"]
[]
["Have you made a will?",null,null,null,null,null,null,null,null,null,null,null,null,null,null,null,null,null,null,"Yes",null,null,"No",null,null,null,"Yes",null,null,"No"]
[]
["Number of dependents"]
[]
["Marital Status (answer this question only if this financial statement is provided in connection with a request for secured credit where the collateral is located in a community property state, if you reside in a community property state, or if you are requesting a joint account with your spouse.",null,null,null,null,null,null,null,null,null,null,null,null,null,null,null,null,null,null,"Married",null,null,null,null,null,null,"Married"]
[]
[null,null,null,null,null,null,null,null,null,null,null,null,null,null,null,null,null,null,null,"Unmarried",null,null,null,null,null,null,"Unmarried"]
[]
[null,null,null,null,null,null,null,null,null,null,null,null,null,null,null,null,null,null,null,"Separated",null,null,null,null,null,null,"Separated"]
[]
["THE FOREGOING STATEMENT, SUBMITTED FOR THE PURPOSE OF OBTAINING CREDIT, IS TRUE AND CORRECT IN EVERY DETAIL AND FAIRLY SHOWS MY/OUR FINANCIAL CONDITION AT THE TIME INDICATED.  I/WE WILL GIVE YOU PROMPT NOTICE OF ANY SUBSEQUENT SUBSTANTIAL CHANGE IN SUCH FINANCIAL CONDITION OCCURRING BEFORE THE DISCHARGE OF MY/OUR OBLIGATIONS TO YOU.  I/WE UNDERSTAND THAT THE BANK WILL RETAIN THIS PERSONAL FINANCIAL STATEMENT WHETHER OR NOT THE CREDIT FOR WHICH THIS STATEMENT IS SUBMITTED IS APPROVED.  THE BANK IS AUTHORIZED TO CHECK MY/OUR CREDIT AND EMPLOYMENT HISTORY OR ANY OTHER INFORMATION CONTAINED HEREIN."]
[]
[]
[]
[]
[]
[]
[]
["THE UNDERSIGNED CERTIFY THAT THE INFORMATION CONTAINED ON THIS FORM HAS BEEN CAREFULLY REVIEWED AND THAT IT IS TRUE AND CORRECT IN ALL RESPECTS"]
[]
[]
["Yes"]
["No"]
[]
["Date",null,null,null,null,null,null,null,null,null,"Applicant Signature"]
[]
[]
[]
["Date",null,null,null,null,null,null,null,null,null,"Co-Applicant Signature"]